bitfinex/quotes_SOLUSD_20250204
["timestamp","ask_amount","ask_price","bid_price","bid_amount"]
[1738656534676,42.72670028,205.03,204.99,0.96038179]
[1738656534881,0.12549,205.03,205.01,0.96038179]
[1738656535081,0.25098,205.06,205.01,0.96038179]
[1738656536011,0.12549,205.04,204.98,0.96038179]
[1738656536193,4.8765,205.07,204.98,0.96038179]
[1738656536194,0.25098,205.02,204.98,0.96038179]
[1738656536390,17.0674,205.07,204.98,0.96038179]
[1738656536391,20.0,205.04,205.02,0.96038179]
[1738656536590,20.0,205.04,204.98,38.68419207]
[1738656536791,0.25098,205.03,204.98,38.68419207]
[1738656537097,42.60031028,205.07,205.02,0.96038179]
[1738656537297,37.72381028,205.11,205.06,0.96038179]
[1738656537490,37.72381028,205.13,205.08,0.96038179]
[1738656537908,4.8753,205.12,205.1,0.96038179]
[1738656538208,0.12549,205.13,205.1,0.96038179]
[1738656538381,42.62801028,205.17,205.12,0.96038179]
[1738656538585,0.03,205.17,205.16,0.96038179]
[1738656539692,0.03,205.17,205.14,0.96038179]
[1738656539892,0.03,205.17,205.08,38.68419207]
[1738656539893,0.12549,205.14,205.08,38.68419207]
[1738656540207,20.0,205.1,205.08,0.96038179]
[1738656540408,20.0,205.06,205.05,0.96038179]
[1738656540994,20.0,205.1,205.05,0.96038179]
[1738656541198,0.12549,205.06,205.05,0.96038179]
[1738656541609,20.12549,205.06,205.05,0.96038179]
[1738656541790,20.0,205.06,205.05,38.68419207]
[1738656541990,20.0,205.06,205.05,0.96038179]
[1738656542286,20.0,205.08,205.07,0.96038179]
[1738656542511,4.8746,205.15,205.11,0.96038179]
[1738656542687,4.8746,205.15,205.12,0.96038179]
[1738656543008,4.9042,205.17,205.12,0.96038179]
[1738656543210,4.9042,205.17,205.11,37.72381028]
[1738656543211,20.0,205.16,205.14,0.96038179]
[1738656543408,20.0,205.16,205.08,4.876]
[1738656543409,37.72381028,205.15,205.08,0.96038179]
[1738656543716,20.0,205.07,205.04,0.96038179]
[1738656543898,20.0,205.07,205.06,0.96038179]
[1738656544092,20.0,205.07,205.04,0.96038179]
[1738656544295,20.0,205.09,205.04,0.96038179]
[1738656544492,20.0,205.05,205.04,0.96038179]
[1738656544929,0.12549,205.04,205.0,0.96038179]
[1738656545232,24.8778,205.01,205.0,0.96038179]
[1738656545589,20.0,204.99,204.96,0.96038179]
[1738656545809,20.0,204.99,204.98,0.96038179]
[1738656546613,20.0,204.99,204.96,0.96038179]
[1738656546815,4.8778,205.01,204.98,0.96038179]
[1738656547036,0.12549,205.0,204.98,0.96038179]
[1738656547194,5.00359,205.0,204.95,1.02338179]
[1738656547800,5.00359,205.0,204.95,0.063]
[1738656547801,37.97479028,204.96,204.95,0.063]
[1738656548393,42.60191028,205.0,204.95,0.063]
[1738656548593,2.6685,205.07,205.0,0.96038179]
[1738656548817,0.03,205.07,205.03,37.72381028]
[1738656548998,0.03,205.07,205.03,0.96038179]
[1738656549416,0.03,205.07,205.05,0.96038179]
[1738656549730,0.03,205.07,205.03,38.68419207]
[1738656549934,0.03,205.07,205.06,0.96038179]
[1738656550136,0.03,205.07,205.06,14.37223032]
[1738656551341,0.03,205.07,205.06,58.0981306]
[1738656551500,0.03,205.07,205.06,19.37432032]
[1738656551699,0.03,205.07,205.06,58.0981306]
[1738656552229,0.03,205.07,205.06,19.37432032]
[1738656552538,0.03,205.07,205.06,19.24883032]
[1738656553034,0.03,205.07,205.06,0.96038179]
[1738656553423,0.03,205.07,205.06,16.10360265]
[1738656553596,0.03,205.07,205.06,53.82741293]
[1738656553938,4.873,205.22,205.16,0.96038179]
[1738656554136,48.00281028,205.25,205.16,38.68419207]
[1738656554301,42.59641028,205.23,205.16,38.68419207]
[1738656554501,20.0,205.22,205.16,38.68419207]
[1738656555034,0.12549,205.21,205.16,38.68419207]
[1738656555202,42.59641028,205.23,205.1,37.72381028]
[1738656555203,0.12549,205.16,205.12,0.96038179]
[1738656555642,0.03,205.17,205.14,0.96038179]
[1738656556147,0.03,205.17,205.16,0.96038179]
[1738656556477,0.03,205.17,205.16,38.68419207]
[1738656556975,0.03,205.17,205.13,0.96038179]
[1738656557261,0.03,205.17,205.16,38.68419207]
[1738656557956,0.03,205.17,205.16,0.96038179]
[1738656559372,0.03,205.17,205.16,38.68419207]
[1738656559859,0.03,205.17,205.14,0.96038179]
[1738656560177,0.03,205.17,205.16,0.96038179]
[1738656560576,0.03,205.17,205.16,38.68419207]
[1738656560746,0.03,205.17,205.16,0.96038179]
[1738656561274,0.03,205.17,205.1,51.13565881]
[1738656561275,0.25098,205.16,205.1,0.96038179]
[1738656561485,37.72381028,205.14,205.1,0.96038179]
[1738656561659,37.84930028,205.16,205.1,0.96038179]
[1738656561974,0.03,205.17,205.14,0.96038179]
[1738656562375,0.03,205.17,205.12,0.96038179]
[1738656562673,0.03,205.17,205.14,0.96038179]
[1738656562840,0.25098,205.16,205.1,0.96038179]
[1738656563054,0.25098,205.16,205.12,0.96038179]
[1738656563250,0.12549,205.14,205.09,0.96038179]
[1738656563477,0.12549,205.1,205.06,0.96038179]
[1738656563862,0.12549,205.1,204.99,0.063]
[1738656563863,0.12549,205.08,205.04,0.96038179]
[1738656564065,0.12549,205.06,205.04,0.96038179]
[1738656564469,37.72381028,205.11,205.07,0.96038179]
[1738656564669,37.72381028,205.11,205.03,37.72381028]
[1738656564878,0.12549,205.06,205.02,0.96038179]
[1738656565063,0.12549,205.06,204.99,37.78681028]
[1738656565064,0.25098,205.06,205.0,0.96038179]
[1738656565264,4.8773,205.03,204.99,0.063]
[1738656565459,0.12549,205.02,205.0,0.96038179]
[1738656565656,4.8773,205.03,204.99,0.063]
[1738656565861,42.59971028,205.09,205.02,0.96038179]
[1738656566055,0.12549,205.08,205.05,0.96038179]
[1738656566573,0.25098,205.08,205.03,0.96038179]
[1738656566781,37.72381028,205.06,204.99,1.02338179]
[1738656567094,0.12549,205.03,205.01,0.96038179]
[1738656567262,5.00279,205.03,204.99,0.063]
[1738656567462,4.877,205.05,205.0,0.96038179]
[1738656567696,42.59991028,205.08,205.03,0.96038179]
[1738656567894,48.28351028,205.1,205.07,0.96038179]
[1738656568105,4.8753,205.12,205.07,0.96038179]
[1738656568393,0.12549,205.11,205.07,0.96038179]
[1738656568692,42.72400028,205.14,205.1,0.96038179]
[1738656569060,0.12549,205.13,205.1,0.96038179]
[1738656569957,48.32641028,205.16,205.13,0.96038179]
[1738656570162,53.20061028,205.16,205.13,0.96038179]
[1738656570393,0.12549,205.15,205.13,0.96038179]
[1738656570610,37.72381028,205.16,205.13,0.96038179]
[1738656570920,0.12549,205.13,205.1,0.96038179]
[1738656571079,37.72381028,205.14,205.12,0.96038179]
[1738656571278,37.72381028,205.14,205.08,0.96038179]
[1738656571599,37.72381028,205.14,205.09,0.96038179]
[1738656571800,42.59851028,205.14,205.12,0.96038179]
[1738656571988,0.12549,205.13,205.1,0.96038179]
[1738656572511,0.12549,205.13,205.07,0.96038179]
[1738656572691,0.12549,205.11,205.07,0.96038179]
[1738656573013,0.12549,205.07,205.02,0.96038179]
[1738656573382,37.72381028,205.08,205.05,0.96038179]
[1738656573578,37.72381028,205.1,205.07,0.96038179]
[1738656573810,0.12549,205.09,205.07,0.96038179]
[1738656574287,42.59861028,205.14,205.09,0.96038179]
[1738656574687,42.62821028,205.16,205.11,0.96038179]
[1738656574900,42.62821028,205.16,205.13,0.96038179]
[1738656574901,4.9042,205.16,205.13,0.96038179]
[1738656575098,0.25098,205.15,205.09,0.96038179]
[1738656575297,0.12549,205.11,205.08,0.96038179]
[1738656575696,42.59861028,205.14,205.11,0.96038179]
[1738656575907,0.12549,205.11,205.06,0.96038179]
[1738656576709,4.69809375,205.1,205.06,0.96038179]
[1738656576885,42.42190403,205.1,205.06,0.96038179]
[1738656577087,0.12549,205.09,205.07,0.96038179]
[1738656577516,0.12549,205.09,205.04,0.96038179]
[1738656577696,5.00149,205.09,205.04,0.96038179]
[1738656578103,4.69809375,205.08,205.07,0.96038179]
[1738656578425,4.69809375,205.08,205.03,0.96038179]
[1738656579195,37.72381028,205.14,205.09,0.96038179]
[1738656579592,4.8751,205.13,205.09,0.96038179]
[1738656579802,0.12549,205.12,205.09,0.96038179]
[1738656580183,4.8745,205.15,205.11,0.96038179]
[1738656580381,0.03,205.16,205.13,0.96038179]
[1738656580595,0.15549,205.16,205.13,0.96038179]
[1738656580795,0.12549,205.13,205.09,0.96038179]
[1738656580992,0.12549,205.11,205.08,0.96038179]
[1738656581799,4.8749,205.13,205.1,0.96038179]
[1738656582027,37.75381028,205.16,205.13,0.96038179]
[1738656582331,0.12549,205.15,205.11,0.96038179]
[1738656582906,0.03,205.16,205.13,0.96038179]
[1738656583325,0.15549,205.16,205.13,0.96038179]
[1738656583632,0.03,205.16,205.15,0.96038179]
[1738656585125,0.03,205.16,205.15,5.83478179]
[1738656585302,0.03,205.28,205.25,0.96038179]
[1738656585523,0.03,205.28,205.27,0.96038179]
[1738656585853,0.03,205.28,205.27,38.30658633]
[1738656586026,0.03,205.28,205.27,43.17818633]
[1738656587165,0.03,205.28,205.27,0.96038179]
[1738656588237,0.03,205.28,205.27,38.30658633]
[1738656589857,0.03,205.28,205.27,51.71843486]
[1738656590066,0.03,205.28,205.27,38.30658633]
[1738656591557,0.03,205.28,205.27,51.71843486]
[1738656592949,0.03,205.28,205.27,89.0646394]
[1738656593160,0.03,205.28,205.27,51.71843486]
[1738656593753,0.03,205.28,205.27,53.44892259]
[1738656593948,0.03,205.28,205.27,52.71843486]
[1738656594144,0.03,205.28,205.27,120.0646394]
[1738656594346,0.03,205.36,205.35,0.96038179]
[1738656594559,0.03,205.36,205.35,38.30658633]
[1738656595264,0.03,205.36,205.35,51.71843486]
[1738656596064,0.03,205.36,205.35,89.0646394]
[1738656596267,0.03,205.36,205.35,56.58813486]
[1738656596467,10.5174,205.52,205.48,0.96038179]
[1738656596649,4.866,205.51,205.48,0.96038179]
[1738656596855,10.5174,205.52,205.5,0.96038179]
[1738656597362,0.12549,205.52,205.5,0.96038179]
[1738656597550,2.674,205.56,205.5,38.30658633]
[1738656597752,10.0022,205.58,205.54,0.96038179]
[1738656597958,4.8636,205.61,205.56,0.96038179]
[1738656598170,2.6196,205.62,205.58,0.96038179]
[1738656598669,4.8632,205.63,205.56,38.30658633]
[1738656598972,0.12549,205.62,205.56,0.96038179]
[1738656599281,0.12549,205.62,205.58,0.96038179]
[1738656599456,0.12549,205.6,205.58,0.96038179]
[1738656599653,37.34620454,205.61,205.56,0.96038179]
[1738656599854,37.34620454,205.59,205.56,0.96038179]
[1738656600053,37.34620454,205.59,205.52,37.34620454]
[1738656600054,37.34620454,205.59,205.54,0.96038179]
[1738656600372,37.34620454,205.55,205.52,0.96038179]
[1738656600580,0.12549,205.54,205.51,0.96038179]
[1738656600786,10.1643,205.56,205.55,0.96038179]
[1738656601079,4.8642,205.58,205.55,0.96038179]
[1738656601282,4.98939,205.6,205.57,0.96038179]
[1738656601587,10.9043,205.61,205.57,38.30658633]
[1738656601768,4.8634,205.62,205.6,0.96038179]
[1738656602082,12.1561,205.66,205.63,0.96038179]
[1738656602083,10.6611,205.66,205.63,0.96038179]
[1738656602379,15.5235,205.66,205.63,0.96038179]
[1738656602578,10.6611,205.66,205.65,0.96038179]
[1738656602781,4.862,205.68,205.65,0.96038179]
[1738656602985,4.862,205.68,205.53,2.72942323]
[1738656602986,22.67521247,205.66,205.61,0.96038179]
[1738656603288,27.53671247,205.7,205.64,0.96038179]
[1738656603474,0.12549,205.69,205.64,0.96038179]
[1738656603679,0.12549,205.67,205.64,0.96038179]
[1738656604185,0.12549,205.65,205.63,0.96038179]
[1738656604395,22.67521247,205.68,205.66,0.96038179]
[1738656604557,4.8606,205.74,205.71,0.96038179]
[1738656604753,7.3477,205.76,205.73,0.96038179]
[1738656605166,44.16814757,205.76,205.73,0.96038179]
[1738656605370,0.12549,205.75,205.73,0.96038179]
[1738656605765,41.68004757,205.78,205.75,0.96038179]
[1738656606275,4.8596,205.78,205.77,0.96038179]
[1738656606459,4.8596,205.78,205.73,0.96038179]
[1738656606460,0.25098,205.77,205.73,0.96038179]
[1738656606659,0.12549,205.74,205.72,0.96038179]
[1738656606871,0.25098,205.72,205.65,0.96038179]
[1738656607061,0.12549,205.66,205.6,0.96038179]
[1738656607260,36.82044757,205.69,205.66,0.96038179]
[1738656607495,36.82044757,205.69,205.62,36.82044757]
[1738656607788,36.82044757,205.67,205.64,0.96038179]
[1738656608082,36.82044757,205.69,205.62,0.96038179]
[1738656608386,4.8621,205.67,205.62,0.96038179]
[1738656608571,0.12549,205.66,205.64,0.96038179]
[1738656609099,41.68164757,205.71,205.68,0.96038179]
[1738656609392,15.5731,205.73,205.7,0.96038179]
[1738656609883,15.5731,205.73,205.72,0.96038179]
[1738656610098,0.12549,205.72,205.68,0.96038179]
[1738656610264,0.03,205.69,205.68,0.96038179]
[1738656610582,0.03,205.69,205.68,37.78082936]
[1738656611372,0.03,205.69,205.68,0.96038179]
[1738656612188,36.82044757,205.84,205.76,0.96038179]
[1738656612481,4.8574,205.87,205.83,0.96038179]
[1738656612795,36.82044757,205.89,205.83,0.96038179]
[1738656613284,41.67744757,205.89,205.85,0.96038179]
[1738656613863,0.25098,205.86,205.79,0.96038179]
[1738656614061,36.82044757,205.86,205.79,37.78082936]
[1738656614261,36.82044757,205.86,205.8,0.96038179]
[1738656614485,5.10908,205.85,205.8,0.96038179]
[1738656615081,0.12549,205.81,205.78,0.96038179]
[1738656615284,36.82044757,205.8,205.78,0.96038179]
[1738656615488,36.82044757,205.82,205.8,0.96038179]
[1738656615694,28.77278289,205.97,205.85,0.96038179]
[1738656615695,36.82044757,205.89,205.85,0.96038179]
[1738656615892,16.9963,205.93,205.83,0.96038179]
[1738656615893,36.82044757,205.87,205.83,0.96038179]
[1738656616092,36.82044757,205.87,205.85,0.96038179]
[1738656616266,0.12549,205.86,205.81,0.96038179]
[1738656616471,36.82044757,205.83,205.79,0.96038179]
[1738656616675,36.82044757,205.81,205.79,0.96038179]
[1738656616890,0.12549,205.8,205.76,0.96038179]
[1738656617094,36.82044757,205.78,205.76,0.96038179]
[1738656617571,0.12549,205.77,205.72,0.96038179]
[1738656617786,36.82044757,205.76,205.72,0.96038179]
[1738656617982,36.82044757,205.78,205.77,0.96038179]
[1738656618189,10.8255,205.81,205.8,0.96038179]
[1738656618390,37.82044757,205.9,205.73,36.82044757]
[1738656618391,47.64594757,205.88,205.85,0.96038179]
[1738656618592,36.82044757,205.86,205.83,0.96038179]
[1738656618786,36.82044757,205.84,205.81,0.96038179]
[1738656618999,36.82044757,205.82,205.81,0.96038179]
[1738656619193,36.82044757,205.84,205.79,0.96038179]
[1738656619382,36.82044757,205.82,205.77,0.96038179]
[1738656619701,36.82044757,205.78,205.73,0.96038179]
[1738656619887,36.82044757,205.75,205.7,0.96038179]
[1738656620098,0.12549,205.72,205.7,0.96038179]
[1738656620272,0.12549,205.7,205.64,0.96038179]
[1738656620594,0.12549,205.7,205.52,89.7]
[1738656620595,36.82044757,205.66,205.62,0.96038179]
[1738656620787,36.82044757,205.64,205.62,0.96038179]
[1738656620984,36.82044757,205.64,205.6,0.96038179]
[1738656621772,36.82044757,205.62,205.56,0.96038179]
[1738656621987,36.82044757,205.58,205.52,0.96038179]
[1738656622176,36.82044757,205.58,205.54,0.96038179]
[1738656622490,36.82044757,205.62,205.58,0.96038179]
[1738656622671,36.82044757,205.64,205.6,0.96038179]
[1738656622872,36.82044757,205.66,205.62,0.96038179]
[1738656623100,36.82044757,205.66,205.51,1.0]
[1738656623101,36.82044757,205.7,205.66,0.96038179]
[1738656623282,36.82044757,205.72,205.68,0.96038179]
[1738656623797,36.82044757,205.72,205.66,0.96038179]
[1738656624505,41.68144757,205.72,205.69,0.96038179]
[1738656624701,41.68144757,205.72,205.63,36.82044757]
[1738656624702,36.82044757,205.72,205.71,0.96038179]
[1738656624874,47.81144757,205.74,205.71,0.96038179]
[1738656625075,47.81144757,205.74,205.6,36.82044757]
[1738656625076,36.82044757,205.78,205.75,0.96038179]
[1738656626376,4.98549,205.83,205.79,0.96038179]
[1738656626377,36.82044757,205.82,205.79,0.96038179]
[1738656626706,36.82044757,205.86,205.83,0.96038179]
[1738656627691,36.82044757,205.88,205.85,0.96038179]
[1738656628181,41.67774757,205.88,205.82,0.96038179]
[1738656628583,0.12549,205.83,205.78,0.96038179]
[1738656628882,0.25098,205.78,205.69,0.96038179]
[1738656629202,36.82044757,205.74,205.7,0.96038179]
[1738656629777,36.82044757,205.72,205.68,0.96038179]
[1738656629978,36.82044757,205.74,205.72,0.96038179]
[1738656630200,36.82044757,205.74,205.7,0.96038179]
[1738656630395,41.68094757,205.74,205.7,0.96038179]
[1738656630606,36.82044757,205.72,205.68,0.96038179]
[1738656630808,36.82044757,205.69,205.66,0.96038179]
[1738656631011,36.82044757,205.67,205.64,0.96038179]
[1738656631222,36.82044757,205.65,205.6,0.96038179]
[1738656631418,36.82044757,205.63,205.6,0.96038179]
[1738656631706,36.82044757,205.71,205.68,0.96038179]
[1738656632033,36.82044757,205.73,205.68,0.96038179]
[1738656632612,36.82044757,205.71,205.66,0.96038179]
[1738656632987,36.82044757,205.67,205.62,0.96038179]
[1738656633191,36.82044757,205.65,205.62,0.96038179]
[1738656633702,36.82044757,205.63,205.6,0.96038179]
[1738656633903,36.82044757,205.61,205.6,0.96038179]
[1738656634096,0.25098,205.6,205.53,0.96038179]
[1738656634320,36.82044757,205.57,205.53,0.96038179]
[1738656634508,36.82044757,205.55,205.53,0.96038179]
[1738656634819,36.82044757,205.57,205.53,0.96038179]
[1738656635018,36.82044757,205.55,205.48,1.02338179]
[1738656635224,36.82044757,205.52,205.48,1.02338179]
[1738656635430,36.82044757,205.5,205.48,0.063]
[1738656635808,73.64089514,205.5,205.48,0.063]
[1738656635995,0.25098,205.49,205.48,0.063]
[1738656636195,36.82044757,205.5,205.48,0.063]
[1738656636414,0.12549,205.49,205.48,0.063]
[1738656636616,0.25098,205.49,205.48,0.063]
[1738656636825,0.25098,205.49,205.48,0.0001]
[1738656636826,0.12549,205.49,205.48,0.0001]
[1738656637025,41.68674757,205.5,205.48,0.0001]
[1738656637225,0.25098,205.49,205.48,0.0001]
[1738656637724,41.68674757,205.5,205.48,0.0001]
[1738656638514,0.25098,205.49,205.48,0.0001]
[1738656638715,41.68674757,205.5,205.48,0.0001]
[1738656638912,0.12549,205.49,205.48,0.0001]
[1738656639429,0.25098,205.49,205.48,0.0001]
[1738656639804,0.25098,205.49,205.43,0.96038179]
[1738656639805,0.12549,205.45,205.41,0.96038179]
[1738656640005,36.82044757,205.43,205.39,0.96038179]
[1738656640297,41.68824757,205.43,205.4,0.96038179]
[1738656640500,36.82044757,205.41,205.38,0.96038179]
[1738656640919,36.82044757,205.39,205.38,0.96038179]
[1738656641293,36.82044757,205.39,205.36,1.02338179]
[1738656641521,36.82044757,205.37,205.36,0.063]
[1738656641903,36.82044757,205.41,205.37,0.96038179]
[1738656642304,36.82044757,205.39,205.36,0.063]
[1738656642530,36.82044757,205.37,205.36,0.063]
[1738656644110,36.82044757,205.39,205.38,0.96038179]
[1738656644427,36.82044757,205.39,205.36,0.063]
[1738656644633,36.82044757,205.39,205.38,0.96038179]
[1738656644833,36.82044757,205.41,205.4,0.96038179]
[1738656645042,36.82044757,205.41,205.37,0.96038179]
[1738656645834,36.82044757,205.39,205.36,0.063]
[1738656646045,36.82044757,205.37,205.36,0.063]
[1738656646660,36.94593757,205.37,205.36,0.063]
[1738656646956,36.82044757,205.39,205.37,0.96038179]
[1738656647114,36.82044757,205.41,205.36,1.02338179]
[1738656647314,36.82044757,205.41,205.38,0.96038179]
[1738656647844,0.12549,205.38,205.36,0.063]
[1738656648013,36.82044757,205.37,205.36,0.063]
[1738656648417,36.82044757,205.39,205.36,0.063]
[1738656648618,36.82044757,205.39,205.37,0.96038179]
[1738656648836,36.82044757,205.43,205.39,0.96038179]
[1738656649452,36.82044757,205.41,205.37,1.02338179]
[1738656649655,36.82044757,205.39,205.37,1.02338179]
[1738656649949,36.82044757,205.39,205.37,0.063]
[1738656650128,36.82044757,205.39,205.37,1.02338179]
[1738656650330,36.82044757,205.43,205.39,0.96038179]
[1738656650548,36.82044757,205.47,205.44,0.96038179]
[1738656651853,36.82044757,205.45,205.4,0.96038179]
[1738656652150,36.82044757,205.42,205.41,0.96038179]
[1738656652313,36.82044757,205.42,205.39,0.96038179]
[1738656652517,41.68854757,205.42,205.38,0.96038179]
[1738656652948,36.82044757,205.42,205.4,0.96038179]
[1738656653152,36.82044757,205.46,205.45,0.96038179]
[1738656653558,0.12549,205.45,205.4,0.96038179]
[1738656653745,36.82044757,205.42,205.4,0.96038179]
[1738656653935,36.82044757,205.42,205.38,0.96038179]
[1738656654128,36.82044757,205.4,205.37,0.063]
[1738656654336,36.82044757,205.38,205.37,0.063]
[1738656654768,36.82044757,205.4,205.37,0.063]
[1738656654947,41.68894757,205.4,205.37,0.063]
[1738656655665,36.82044757,205.42,205.37,0.063]
[1738656655862,36.82044757,205.44,205.37,0.063]
[1738656656057,36.82044757,205.46,205.38,36.82044757]
[1738656656950,36.82044757,205.46,205.39,4.8687]
[1738656657154,36.82044757,205.5,205.42,36.82044757]
[1738656657355,36.82044757,205.54,205.46,36.82044757]
[1738656657553,41.68524757,205.56,205.48,36.82044757]
[1738656657745,36.82044757,205.56,205.48,36.82044757]
[1738656658447,36.82044757,205.58,205.5,36.82044757]
[1738656658639,36.82044757,205.56,205.48,36.82044757]
[1738656658839,36.82044757,205.5,205.42,36.82044757]
[1738656659061,36.82044757,205.54,205.46,36.82044757]
[1738656659249,36.82044757,205.58,205.5,36.82044757]
[1738656660435,0.12549,205.62,205.48,36.82044757]
[1738656660436,36.82044757,205.56,205.48,36.82044757]
[1738656660644,36.82044757,205.51,205.42,36.82044757]
[1738656660851,36.82044757,205.47,205.39,30.0]
[1738656661087,36.82044757,205.53,205.44,36.82044757]
[1738656661249,2.0,205.67,205.43,1.0]
[1738656661450,12.1595,205.61,205.41,1.0]
[1738656661675,0.03,205.51,205.47,36.82044757]
[1738656662186,36.82044757,205.49,205.41,36.82044757]
[1738656662484,36.82044757,205.47,205.39,36.82044757]
[1738656662782,36.82044757,205.43,205.37,0.063]
[1738656662951,36.82044757,205.47,205.39,36.82044757]
[1738656663147,36.82044757,205.49,205.41,36.82044757]
[1738656663362,36.82044757,205.47,205.39,36.82044757]
[1738656663651,36.82044757,205.46,205.37,0.063]
[1738656664075,41.68664757,205.5,205.4,36.82044757]
[1738656664402,41.68654757,205.5,205.42,36.82044757]
[1738656664683,36.82044757,205.48,205.4,36.82044757]
[1738656664884,36.82044757,205.5,205.42,36.82044757]
[1738656665090,0.03,205.51,205.44,36.82044757]
[1738656665888,0.03,205.51,205.46,36.82044757]
[1738656666182,0.03,205.51,205.5,36.82044757]
[1738656666659,0.03,205.51,205.48,36.82044757]
[1738656667093,0.03,205.51,205.5,36.82044757]
[1738656668168,0.03,205.51,205.48,36.82044757]
[1738656668373,0.03,205.51,205.5,36.82044757]
[1738656670508,0.03,205.51,205.48,36.82044757]
[1738656671110,0.03,205.51,205.46,36.82044757]
[1738656671405,36.85044757,205.51,205.41,36.82044757]
[1738656671566,36.85044757,205.51,205.43,36.82044757]
[1738656672276,0.03,205.51,205.43,36.82044757]
[1738656672483,0.03,205.51,205.45,36.82044757]
[1738656672678,0.03,205.51,205.47,36.82044757]
[1738656672974,0.03,205.51,205.49,36.82044757]
[1738656673902,0.03,205.51,205.45,36.82044757]
[1738656674203,36.85044757,205.51,205.42,36.82044757]
[1738656674413,0.03,205.51,205.48,36.82044757]
[1738656674705,0.03,205.51,205.5,22.70051619]
[1738656675202,0.03,205.51,205.5,27.56661619]
[1738656676219,0.03,205.51,205.48,22.70051619]
[1738656676396,0.03,205.51,205.46,22.70051619]
[1738656676612,0.03,205.51,205.44,22.70051619]
[1738656676909,0.15549,205.51,205.44,22.70051619]
[1738656677099,22.70051619,205.5,205.42,27.56851619]
[1738656677281,27.56671619,205.5,205.43,30.0]
[1738656677480,27.56671619,205.5,205.42,22.70051619]
[1738656677706,22.70051619,205.48,205.4,22.70051619]
[1738656677923,22.70051619,205.44,205.38,0.063]
[1738656678089,22.70051619,205.48,205.4,22.70051619]
[1738656678913,22.70051619,205.5,205.42,22.70051619]
[1738656679113,22.70051619,205.5,205.38,17.1044]
[1738656679114,0.12549,205.45,205.38,0.063]
[1738656679316,22.70051619,205.44,205.38,0.063]
[1738656679617,12.1948,205.51,205.38,22.76351619]
[1738656679618,22.70051619,205.46,205.38,22.76351619]
[1738656679824,22.70051619,205.48,205.4,22.70051619]
[1738656679989,22.70051619,205.5,205.42,22.70051619]
[1738656680193,27.56661619,205.5,205.42,22.70051619]
[1738656680593,22.70051619,205.5,205.42,22.70051619]
[1738656681725,22.70051619,205.48,205.4,22.70051619]
[1738656682423,22.70051619,205.46,205.38,22.76351619]
[1738656682633,22.70051619,205.44,205.38,0.063]
[1738656682924,22.70051619,205.48,205.4,22.70051619]
[1738656683127,22.70051619,205.46,205.38,22.76351619]
[1738656683431,22.70051619,205.46,205.38,0.063]
[1738656683631,22.70051619,205.4,205.38,0.063]
[1738656684010,0.25098,205.39,205.38,0.063]
[1738656684398,22.70051619,205.4,205.38,0.063]
[1738656685596,4.8687,205.39,205.38,0.063]
[1738656687019,5.11968,205.39,205.38,0.063]
[1738656687523,22.70051619,205.4,205.38,0.063]
[1738656687902,27.56901619,205.4,205.38,0.063]
[1738656689091,38.48169619,205.42,205.38,0.063]
[1738656689303,22.70051619,205.4,205.38,0.063]
[1738656689524,0.25098,205.39,205.38,0.063]
[1738656689729,22.70051619,205.4,205.38,0.063]
[1738656690106,4.8685,205.41,205.38,0.063]
[1738656690804,27.56781619,205.46,205.38,0.063]
[1738656691005,22.70051619,205.48,205.4,22.70051619]
[1738656691202,22.70051619,205.46,205.38,22.76351619]
[1738656691628,22.70051619,205.46,205.39,4.8687]
[1738656691835,27.56711619,205.48,205.4,22.70051619]
[1738656692711,22.70051619,205.46,205.38,27.63251619]
[1738656694449,22.70051619,205.5,205.4,22.70051619]
[1738656694606,22.70051619,205.5,205.42,22.70051619]
[1738656695332,22.70051619,205.48,205.4,22.70051619]
[1738656695631,22.70051619,205.5,205.4,22.70051619]
[1738656695932,22.70051619,205.5,205.42,22.70051619]
[1738656696614,27.56681619,205.5,205.42,22.70051619]
[1738656696813,27.56681619,205.5,205.42,27.56851619]
[1738656697330,27.56681619,205.5,205.42,22.70051619]
[1738656698043,22.70051619,205.48,205.4,22.70051619]
[1738656698725,22.70051619,205.48,205.4,27.56901619]
[1738656699115,27.56731619,205.48,205.4,27.56901619]
[1738656699330,22.70051619,205.44,205.38,0.063]
[1738656699536,22.70051619,205.4,205.38,0.063]
[1738656699706,0.12549,205.39,205.38,0.063]